fUST/lending_fUST_20251021
["ID","MTS","AMOUNT","RATE_DAILY","PERIOD"]
[391933319,1761005253387,2278.036048,0.00030136,120]
[391933346,1761005432597,-336.625724,0.00024288,28]
[391933347,1761005432607,-229.459681,0.00024288,28]
[391933348,1761005432615,-363.59327912,0.00024288,2]
[391933349,1761005432625,-75.29958988,0.00024888,2]
[391933355,1761005432671,-342.8326811,0.00024888,2]
[391933357,1761005432681,-2006.0,0.00025,2]
[391933359,1761005432690,-472.67126285,0.00025488,2]
[391933361,1761005432700,-175.0,0.00025726,17]
[391933363,1761005432709,-109.32945177,0.00025759,2]
[391933393,1761005438564,-547.34572699,0.00025759,2]
[391933396,1761005438577,-300.0,0.00025772,2]
[391933398,1761005438590,-10829.52352594,0.00025773,2]
[391933401,1761005438603,-5582.5888124,0.000258,2]
[391933403,1761005438616,-28165.328094,0.00025851,2]
[391933404,1761005438629,-310.0,0.00025859,2]
[391933406,1761005438643,-500.0,0.00025859,2]
[391933407,1761005438655,-273.19173859,0.00025859,2]
[391933408,1761005438667,-566.44495857,0.00025859,2]
[391933409,1761005438680,-184.69886131,0.00025859,2]
[391933410,1761005438692,-1067.99,0.0002586,3]
[391933411,1761005438704,-534.0,0.0002586,3]
[391933412,1761005438717,-267.0,0.0002586,3]
[391933413,1761005438729,-801.0,0.0002586,3]
[391933414,1761005438741,-112661.312376,0.0002586,2]
[391933415,1761005438753,-533.88981491,0.00025865,2]
[391933416,1761005438765,-112661.312376,0.0002587,2]
[391933417,1761005438778,-379.77643342,0.00025873,2]
[391933418,1761005438790,-500.0,0.00025873,2]
[391933419,1761005438802,-500.0,0.00025873,2]
[391933420,1761005438813,-500.0,0.00025873,2]
[391933421,1761005438826,-500.0,0.00025873,2]
[391933422,1761005438839,-151.0,0.0002588,7]
[391933423,1761005438851,-151.0,0.0002588,7]
[391933424,1761005438862,-257.58272292,0.0002588,7]
[391933425,1761005438874,-370000.0,0.0002588,2]
[391933426,1761005438886,-18607.62,0.000259,7]
[391933427,1761005438898,-402.9601108,0.00026016,7]
[391933428,1761005438910,-527.21025472,0.00026088,2]
[391933429,1761005438921,-300.0,0.00026397,30]
[391933430,1761005438933,-300.0,0.00026397,30]
[391933431,1761005438944,-300.0,0.00026397,30]
[391933432,1761005438955,-300.0,0.00026397,30]
[391933433,1761005438966,-300.0,0.00026397,30]
[391933434,1761005438978,-300.0,0.00026397,30]
[391933435,1761005438990,-300.0,0.00026397,30]
[391933436,1761005439001,-300.0,0.00026397,30]
[391933437,1761005439014,-300.0,0.00026397,30]
[391933438,1761005439027,-300.0,0.00026397,30]
[391933439,1761005439039,-300.0,0.00026397,30]
[391933440,1761005439051,-300.0,0.00026397,30]
[391933441,1761005439063,-300.0,0.00026397,30]
[391933442,1761005439075,-300.0,0.00026397,30]
[391933443,1761005439087,-300.0,0.00026397,30]
[391933444,1761005439099,-600.0,0.00026397,30]
[391933445,1761005439112,-553.64373807,0.00026413,2]
[391933446,1761005439123,-1000.0,0.00026421,2]
[391933447,1761005439136,-442.97174692,0.00026421,2]
[391933448,1761005439148,-1000.0,0.00026421,2]
[391933449,1761005439160,-1000.0,0.00026421,2]
[391933450,1761005439172,-336.625724,0.00026641,28]
[391933451,1761005439184,-229.459681,0.00026641,28]
[391933452,1761005439196,-581.74924659,0.00026688,2]
[391933453,1761005439207,-563.0,0.00026819,2]
[391933454,1761005439222,-656.67517876,0.00026869,2]
[391933455,1761005439234,-563.0,0.0002687,2]
[391933456,1761005439246,-574.12855637,0.00026961,2]
[391933457,1761005439260,-1007.2367903,0.00026968,2]
[391933458,1761005439272,-1500.0,0.00026968,2]
[391933459,1761005439284,-1500.0,0.00026968,2]
[391933460,1761005439296,-500.0,0.00026991,2]
[391933461,1761005439307,-336.625724,0.00027,2]
[391933462,1761005439319,-229.459681,0.00027,2]
[391933463,1761005439331,-459.57309028,0.0002701,4]
[391933464,1761005439343,-500.0,0.00027046,2]
[391933465,1761005439355,-14065.15109113,0.00027097,3]
[391933466,1761005439367,-500.0,0.00027101,2]
[391933467,1761005439378,-1007.7938946,0.00027123,3]
[391933468,1761005439390,-500.0,0.00027155,2]
[391933469,1761005439401,-500.0,0.0002721,2]
[391933470,1761005439414,-2135.98,0.0002723,3]
[391933471,1761005439426,-1068.0,0.0002723,3]
[391933472,1761005439438,-534.0,0.0002723,3]
[391933473,1761005439450,-500.0,0.00027265,2]
[391933474,1761005439460,-160.0,0.00027269,2]
[391933475,1761005439470,-160.0,0.00027269,2]
[391933476,1761005439480,-402.9601108,0.00027269,2]
[391933477,1761005439804,-160.0,0.00027269,2]
[391933478,1761005439826,-563.0,0.00027282,2]
[391933479,1761005439835,-636.28823845,0.00027288,2]
[391933480,1761005439846,-500.0,0.0002732,2]
[391933481,1761005439855,-160.0,0.00027369,2]
[391933482,1761005439865,-570.82366199,0.00027373,2]
[391933483,1761005439874,-500.0,0.00027373,2]
[391933484,1761005439884,-500.0,0.00027373,2]
[391933485,1761005439893,-500.0,0.00027373,2]
[391933486,1761005439905,-500.0,0.00027373,2]
[391933487,1761005439915,-500.0,0.00027373,2]
[391933488,1761005439926,-500.0,0.00027373,2]
[391933489,1761005439936,-388.79249431,0.00027375,2]
[391933490,1761005439948,-155.0,0.00027396,2]
[391933491,1761005439958,-1000.0,0.00027397,2]
[391933492,1761005439968,-1000.0,0.00027397,2]
[391933493,1761005439978,-1000.0,0.00027397,2]
[391933494,1761005439988,-1000.0,0.00027397,2]
[391933495,1761005439998,-1000.0,0.00027397,2]
[391933496,1761005440009,-1000.0,0.00027397,2]
[391933497,1761005440019,-1000.0,0.00027397,2]
[391933498,1761005440030,-1000.0,0.00027397,2]
[391933499,1761005440040,-1000.0,0.00027397,2]
[391933500,1761005440050,-1000.0,0.00027397,2]
[391933501,1761005440060,-1000.0,0.00027397,2]
[391933502,1761005440069,-1000.0,0.00027397,2]
[391933503,1761005440078,-1000.0,0.00027397,2]
[391933504,1761005440089,-1000.0,0.00027397,2]
[391933505,1761005440099,-859.93312633,0.00027397,2]
[391933506,1761005440108,-557.84,0.00027397,2]
[391933507,1761005440118,-557.84,0.00027397,2]
[391933508,1761005440130,-557.84,0.00027397,2]
[391933509,1761005440140,-557.84,0.00027397,2]
[391933510,1761005440151,-557.84,0.00027397,2]
[391933511,1761005440160,-557.84,0.00027397,2]
[391933512,1761005440170,-557.84,0.00027397,2]
[391933513,1761005440179,-557.84,0.00027397,2]
[391933515,1761005440188,-557.84,0.00027397,2]
[391933516,1761005440199,-557.84,0.00027397,2]
[391933517,1761005440210,-557.84,0.00027397,2]
[391933518,1761005440221,-557.84,0.00027397,2]
[391933519,1761005440232,-557.84,0.00027397,2]
[391933520,1761005440241,-557.84,0.00027397,2]
[391933521,1761005440251,-557.84,0.00027397,2]
[391933522,1761005440260,-557.84,0.00027397,2]
[391933523,1761005440272,-557.84,0.00027397,2]
[391933524,1761005440282,-557.84,0.00027397,2]
[391933525,1761005440292,-557.84,0.00027397,2]
[391933526,1761005440301,-557.84,0.00027397,2]
[391933527,1761005440310,-557.84,0.00027397,2]
[391933528,1761005440319,-557.84,0.00027397,2]
[391933529,1761005440329,-557.84,0.00027397,2]
[391933530,1761005440338,-557.99501602,0.00027397,2]
[391933531,1761005440348,-1000.0,0.00027397,2]
[391933532,1761005440357,-561.13232975,0.00027397,2]
[391933533,1761005440367,-151.0,0.00027397,7]
[391933534,1761005440378,-1000.0,0.00027397,2]
[391933535,1761005440388,-1000.0,0.00027397,2]
[391933537,1761005440397,-1000.0,0.00027397,2]
[391933539,1761005440407,-1000.0,0.00027397,2]
[391933541,1761005440416,-1000.0,0.00027397,2]
[391933543,1761005440426,-1000.0,0.00027397,2]
[391933545,1761005440435,-1000.0,0.00027397,2]
[391933547,1761005440444,-1000.0,0.00027397,2]
[391933549,1761005440453,-1000.0,0.00027397,2]
[391933551,1761005440463,-1000.0,0.00027397,2]
[391933553,1761005440472,-1000.0,0.00027397,2]
[391933555,1761005440482,-1000.0,0.00027397,2]
[391933557,1761005440491,-1000.0,0.00027397,2]
[391933559,1761005440500,-1000.0,0.00027397,2]
[391933561,1761005440509,-1000.0,0.00027397,2]
[391933563,1761005440519,-1000.0,0.00027397,2]
[391933565,1761005440528,-232.36513678,0.00027397,2]
[391933567,1761005440538,-1500.0,0.00027397,30]
[391933569,1761005440547,-151.0,0.00027397,7]
[391933571,1761005440557,-2945.44,0.00027397,2]
[391933573,1761005440567,-2945.44,0.00027397,2]
[391933575,1761005440576,-2945.44,0.00027397,2]
[391933577,1761005440585,-2945.44,0.00027397,2]
[391933579,1761005440594,-2945.44,0.00027397,2]
[391933581,1761005440604,-2945.44,0.00027397,2]
[391933583,1761005440613,-2945.44,0.00027397,2]
[391933585,1761005440622,-2945.44,0.00027397,2]
[391933587,1761005440631,-2945.44,0.00027397,2]
[391933589,1761005440640,-2945.44,0.00027397,2]
[391933591,1761005440649,-2945.44,0.00027397,2]
[391933593,1761005440658,-2945.44,0.00027397,2]
[391933595,1761005440668,-2945.44,0.00027397,2]
[391933597,1761005440677,-2945.44,0.00027397,2]
[391933599,1761005440686,-2945.44,0.00027397,2]
[391933601,1761005440695,-2945.44,0.00027397,2]
[391933603,1761005440704,-2945.44,0.00027397,2]
[391933605,1761005440714,-2945.44,0.00027397,2]
[391933607,1761005440723,-2945.44,0.00027397,2]
[391933609,1761005440732,-2945.44,0.00027397,2]
[391933611,1761005440741,-2945.44,0.00027397,2]
[391933613,1761005440751,-2945.44,0.00027397,2]
[391933615,1761005440760,-2945.44,0.00027397,2]
[391933617,1761005440769,-2945.51351934,0.00027397,2]
[391933619,1761005440778,-151.0,0.00027397,7]
[391933621,1761005440787,-1187.75,0.00027397,2]
[391933623,1761005440797,-1187.75,0.00027397,2]
[391933625,1761005440806,-1187.75,0.00027397,2]
[391933627,1761005440816,-1187.75,0.00027397,2]
[391933629,1761005440825,-1187.75,0.00027397,2]
[391933631,1761005440834,-1187.75,0.00027397,2]
[391933633,1761005440843,-1187.75,0.00027397,2]
[391933635,1761005440852,-1187.75,0.00027397,2]
[391933637,1761005440861,-1187.75,0.00027397,2]
[391933639,1761005440870,-1187.75,0.00027397,2]
[391933641,1761005440880,-1187.75,0.00027397,2]
[391933643,1761005440889,-1187.75,0.00027397,2]
[391933645,1761005440898,-1187.75,0.00027397,2]
[391933647,1761005440908,-1187.75,0.00027397,2]
[391933649,1761005440917,-1187.75,0.00027397,2]
[391933651,1761005440927,-1187.75,0.00027397,2]
[391933653,1761005440936,-1187.75,0.00027397,2]
[391933655,1761005440945,-1187.75,0.00027397,2]
[391933657,1761005440954,-1187.75,0.00027397,2]
[391933659,1761005440964,-1187.75,0.00027397,2]
[391933661,1761005440974,-1187.75,0.00027397,2]
[391933663,1761005440983,-1187.75,0.00027397,2]
[391933665,1761005440992,-1187.75,0.00027397,2]
[391933667,1761005441003,-1187.96021411,0.00027397,2]
[391933669,1761005441012,-154.08754,0.00027397,30]
[391933671,1761005441022,-154.08754,0.00027397,30]
[391933673,1761005441032,-154.08754,0.00027397,30]
[391933675,1761005441041,-154.08754,0.00027397,30]
[391933677,1761005441050,-154.08754,0.00027397,30]
[391933679,1761005441059,-154.08754,0.00027397,30]
[391933681,1761005441068,-154.08754,0.00027397,30]
[391933683,1761005441077,-154.08754,0.00027397,30]
[391933685,1761005441087,-500.0,0.00027397,60]
[391933687,1761005441097,-500.0,0.00027397,60]
[391933689,1761005441106,-500.0,0.00027397,60]
[391933691,1761005441115,-500.0,0.00027397,60]
[391933693,1761005441125,-500.0,0.00027397,60]
[391933695,1761005441134,-500.0,0.00027397,60]
[391933697,1761005441143,-500.0,0.00027397,60]
[391933699,1761005441153,-500.0,0.00027397,60]
[391933701,1761005441163,-153.899138,0.00027397,60]
[391933703,1761005441173,-151.782599,0.00027397,30]
[391933705,1761005441182,-151.0,0.00027397,30]
[391933707,1761005441192,-152.322127,0.00027397,30]
[391933709,1761005441201,-500.0,0.00027452,10]
[391933711,1761005441213,-500.0,0.00027452,10]
[391933712,1761005441222,-566.0,0.000275,2]
[391933713,1761005441232,-3112.86,0.000275,2]
[391933714,1761005441242,-595.37131296,0.00027509,2]
[391933715,1761005441252,-2000.0,0.00027516,5]
[391933716,1761005441261,-2000.0,0.00027516,5]
[391933717,1761005441271,-563.0,0.00027643,2]
[391933718,1761005441281,-1500.0,0.00027671,30]
[391933719,1761005441292,-563.0,0.00027682,2]
[391933720,1761005441302,-151.0,0.00027682,30]
[391933721,1761005441311,-564.0,0.0002769,2]
[391933722,1761005441321,-5582.58881236,0.0002771,2]
[391933723,1761005441330,-563.0,0.00027769,7]
[391933724,1761005441340,-327.12884821,0.00027831,4]
[391933725,1761005441348,-271.78296428,0.00027831,4]
[391933726,1761005441357,-251.32,0.00027845,2]
[391933727,1761005441366,-150.0,0.00027845,2]
[391933729,1761005441376,-150.0,0.00027845,2]
[391933730,1761005441386,-150.0,0.00027845,2]
[391933732,1761005441395,-150.0,0.00027845,2]
[391933734,1761005441404,-150.07,0.00027845,2]
[391933736,1761005441413,-632.0,0.00027845,2]
[391933738,1761005441422,-999.443,0.00027845,2]
[391933740,1761005441432,-2163.0,0.00027845,2]
[391933742,1761005441441,-690.82723032,0.00027888,2]
[391933743,1761005441450,-420.0,0.00027898,2]
[391933745,1761005441459,-260.0,0.00027917,2]
[391933746,1761005441469,-1110.37696371,0.00027921,2]
[391933748,1761005441478,-502.13746908,0.00027921,5]
[391933749,1761005441487,-1000.0,0.00027921,5]
[391933750,1761005441497,-524.87285329,0.00027921,5]
[391933751,1761005441506,-1000.0,0.00027921,5]
[391933752,1761005441516,-1000.0,0.00027921,5]
[391933753,1761005441525,-527.013,0.00027935,18]
[391933754,1761005441534,-402.9601108,0.00027945,30]
[391933755,1761005441544,-1067.03131726,0.00027945,30]
[391933756,1761005441553,-656.67517876,0.00027978,2]
[391933757,1761005441563,-563.0,0.00028024,2]
[391933758,1761005441572,-617.40005154,0.00028057,2]
[391933759,1761005441582,-2500.0,0.00028064,5]
[391933760,1761005441591,-153.0,0.00028094,2]
[391933761,1761005441600,-153.0,0.00028094,2]
[391933762,1761005441611,-153.0,0.00028094,2]
[391933763,1761005441620,-153.0,0.00028094,2]
[391933764,1761005441629,-153.0,0.00028094,2]
[391933765,1761005441639,-153.0,0.00028094,2]
[391933766,1761005441650,-153.0,0.00028094,2]
[391933767,1761005441660,-153.0,0.00028094,2]
[391933768,1761005441670,-153.0,0.00028094,2]
[391933769,1761005441681,-153.0,0.00028094,2]
[391933770,1761005441692,-153.0,0.00028094,2]
[391933771,1761005441703,-153.0,0.00028094,2]
[391933772,1761005441720,-4204.0,0.00028183,2]
[391933773,1761005441736,-151.0,0.00028212,30]
[391933774,1761005441751,-245.012502,0.00028212,30]
[391933775,1761005441761,-5000.0,0.00028212,2]
[391933776,1761005441771,-333.07478644,0.00028402,2]
[391933777,1761005441781,-599.5346156,0.00028402,2]
[391933778,1761005441790,-237.08605565,0.00028402,2]
[391933779,1761005441800,-426.75490016,0.00028402,2]
[391933780,1761005441809,-1064.7734773,0.00028402,2]
[391933781,1761005441819,-196.97422391,0.00028402,2]
[391933782,1761005441828,-354.55360304,0.00028402,2]
[391933783,1761005441840,-757.91670269,0.00028402,2]
[391933784,1761005441850,-629.68719899,0.00028402,2]
[391933785,1761005441859,-360.0,0.00028465,2]
[391933786,1761005441869,-563.0,0.00028467,2]
[391933787,1761005441878,-446.45912168,0.00028468,5]
[391933788,1761005441887,-1500.0,0.00028468,5]
[391933789,1761005441897,-1500.0,0.00028468,5]
[391933790,1761005441906,-745.36622219,0.00028488,2]
[391933791,1761005441916,-153.0,0.0002855,2]
[391933792,1761005441925,-153.0,0.0002855,2]
[391933793,1761005441935,-153.0,0.0002855,2]
[391933794,1761005441944,-153.0,0.0002855,2]
[391933795,1761005441954,-640.24385345,0.00028605,2]
[391933796,1761005441963,-3000.0,0.00028612,5]
[391933797,1761005441972,-563.0,0.00028624,2]
[391933798,1761005441982,-563.0,0.00028631,7]
[391933799,1761005441992,-241.797563,0.00028652,2]
[391933800,1761005442001,-563.0,0.00028708,2]
[391933801,1761005442010,-563.0,0.00028714,2]
[391933802,1761005442020,-784.3468846,0.0002888,30]
[391933803,1761005442029,-392.7178133,0.00028883,30]
[391933804,1761005442039,-392.7178133,0.00028883,30]
[391933805,1761005442049,-392.7178133,0.00028883,30]
[391933806,1761005442058,-563.0,0.0002891,7]
[391933807,1761005442068,-179.67658215,0.00028964,2]
[391933808,1761005442077,-336.625724,0.00028993,28]
[391933809,1761005442087,-229.459681,0.00028993,28]
[391933810,1761005442097,-950.0,0.00029,60]
[391933811,1761005442107,-1302.64,0.00029,2]
[391933812,1761005442118,-563.0,0.00029004,2]
[391933813,1761005442129,-460.0,0.00029013,2]
[391933814,1761005442139,-155.0,0.00029014,32]
[391933815,1761005442150,-507.1927802,0.00029016,5]
[391933816,1761005442160,-1027.64625486,0.00029016,5]
[391933817,1761005442170,-720.0,0.00029037,30]
[391933818,1761005442181,-563.0,0.00029079,2]
[391933819,1761005442191,-564.0,0.00029088,2]
[391933820,1761005442200,-799.90521406,0.00029088,2]
[391933821,1761005442213,-656.67517876,0.00029088,2]
[391933822,1761005442222,-762.0,0.000291,2]
[391933823,1761005442232,-595.9271143,0.0002913,5]
[391933824,1761005442241,-663.93287602,0.00029153,2]
[391933825,1761005442251,-3500.0,0.0002916,5]
[391933826,1761005442261,-564.0,0.00029164,7]
[391933827,1761005442271,-336.625724,0.00029165,2]
[391933828,1761005442281,-229.459681,0.00029165,2]
[391933829,1761005442291,-1302.64,0.00029174,2]
[391933830,1761005442301,-326.3442543,0.00029201,2]
[391933831,1761005442311,-21334.5528708,0.00029201,2]
[391933832,1761005442320,-151.0,0.00029201,30]
[391933833,1761005442329,-151.0,0.00029201,30]
[391933834,1761005442339,-151.0,0.00029201,30]
[391933835,1761005442348,-151.0,0.00029201,30]
[391933836,1761005442357,-154.08754,0.00029201,30]
[391933837,1761005442367,-154.08754,0.00029201,30]
[391933838,1761005442376,-154.08754,0.00029201,30]
[391933839,1761005442386,-154.08754,0.00029201,30]
[391933840,1761005442395,-652.6885086,0.00029201,2]
[391933841,1761005442404,-566.0,0.00029207,7]
[391933842,1761005442414,-563.0,0.00029214,7]
[391933843,1761005442423,-800.0,0.00029244,2]
[391933844,1761005442432,-800.0,0.00029255,2]
[391933845,1761005442441,-800.0,0.00029294,2]
[391933846,1761005442451,-800.0,0.00029305,2]
[391933847,1761005442460,-800.0,0.00029311,2]
[391933848,1761005442469,-800.0,0.00029329,2]
[391933849,1761005442480,-800.0,0.00029333,2]
[391933850,1761005442490,-1302.64,0.00029348,2]
[391933851,1761005442499,-800.0,0.00029366,2]
[391933852,1761005442508,-800.0,0.00029372,2]
[391933853,1761005442518,-563.0,0.00029372,2]
[391933854,1761005442527,-800.0,0.00029388,2]
[391933855,1761005442537,-800.0,0.00029397,2]
[391933856,1761005442546,-800.0,0.00029401,2]
[391933857,1761005442555,-800.0,0.00029406,2]
[391933858,1761005442564,-800.0,0.0002944,2]
[391933859,1761005442573,-800.0,0.00029452,2]
[391933860,1761005442583,-800.0,0.00029466,2]
[391933861,1761005442592,-800.0,0.00029468,2]
[391933862,1761005442601,-151.0,0.00029468,30]
[391933863,1761005442610,-427.82433594,0.00029473,2]
[391933864,1761005442620,-800.0,0.00029478,2]
[391933865,1761005442629,-800.0,0.00029494,2]
[391933866,1761005442639,-800.0,0.00029507,2]
[391933867,1761005442648,-564.0,0.00029522,2]
[391933868,1761005442657,-564.0,0.00029554,2]
[391933869,1761005442666,-59707.2655565,0.0002956,2]
[391933870,1761005442676,-151.0,0.0002956,30]
[391933871,1761005442685,-151.0,0.0002956,30]
[391933872,1761005442694,-151.0,0.0002956,30]
[391933873,1761005442704,-151.0,0.0002956,30]
[391933874,1761005442713,-151.0,0.0002956,30]
[391933875,1761005442722,-560.0,0.00029561,2]
[391933876,1761005442731,-150.0,0.00029573,5]
[391933877,1761005442741,-150.0,0.00029573,5]
[391933878,1761005442750,-500.0,0.00029573,5]
[391933879,1761005442759,-500.0,0.00029573,5]
[391933880,1761005442769,-500.0,0.00029573,5]
[391933881,1761005442778,-500.0,0.00029573,4]
[391933882,1761005442789,-520.34331837,0.00029573,5]
[391933883,1761005442799,-500.0,0.00029573,5]
[391933884,1761005442810,-500.0,0.00029573,5]
[391933885,1761005442821,-290.63311626,0.00029573,5]
[391933886,1761005442831,-563.0,0.00029615,2]
[391933887,1761005442841,-5582.58881236,0.0002962,2]
[391933888,1761005442852,-10829.52352593,0.0002965,2]
[391933889,1761005442861,-854.44420592,0.00029688,2]
[391933890,1761005442871,-208.66,0.000297,2]
[391933891,1761005442881,-277.0,0.000297,2]
[391933892,1761005442890,-688.49839244,0.00029701,2]
[391933893,1761005442900,-608.0657712,0.00029701,30]
[391933894,1761005442909,-589.7208673,0.00029701,30]
[391933895,1761005442928,-4000.0,0.00029708,5]
[391933896,1761005442939,-503.49569902,0.00029781,7]
[391933897,1761005442950,-3112.86,0.000298,2]
[391933898,1761005442960,-392.7178133,0.00029842,30]
[391933899,1761005442970,-392.0899615,0.00029842,30]
[391933900,1761005442982,-14065.09,0.000299,5]
[391933901,1761005442993,-500.0,0.00029973,5]
[391933902,1761005443004,-155.0,0.00029999,2]
[391933903,1761005443016,-21219.98746283,0.0003,2]
[391933904,1761005443027,-1292.77429664,0.0003,2]
[391933905,1761005443038,-5261.39033516,0.0003,2]
[391933913,1761005443509,-2031.70691302,0.0003,2]
[391933915,1761005443518,-2677.63342913,0.0003,3]
[391933918,1761005443530,-3354.47318533,0.0003,3]
[391934218,1761005446998,-500.0,0.0002445,10]
[391934219,1761005447008,-500.0,0.0002445,10]
[391934220,1761005447018,-234.45,0.0003,3]
[391934221,1761005495255,3916.64515436,0.00024075,2]
[391934222,1761005608770,417.15472785,0.00024075,2]
[391934224,1761005690292,2000.0,0.00030137,120]
[391934225,1761005882896,500.0,0.0002397,10]
[391934226,1761005885177,451.0,0.0002397,10]
[391934227,1761006093612,3568.0,0.00024075,2]
[391934231,1761006463255,340.0,0.00024075,2]
[391934267,1761006631682,-864.53842976,0.00024142,2]
[391934269,1761006631692,-316.32615283,0.00024288,2]
[391934271,1761006631701,-164.0030779,0.0002455,2]
[391934275,1761006631735,-328.50330617,0.0002455,2]
[391934277,1761006631745,-300.0,0.00024649,2]
[391934279,1761006631754,-1139.81824454,0.0002465,2]
[391934281,1761006631765,-954.45594316,0.0002465,2]
[391934283,1761006631776,-1000.63248147,0.0002465,2]
[391934321,1761006637533,-41703.82667166,0.0002465,2]
[391934322,1761006637542,-509.0797649,0.0002465,2]
[391934323,1761006637551,-500.0,0.00024673,2]
[391934324,1761006637560,-500.0,0.00024673,2]
[391934325,1761006637570,-500.0,0.00024673,2]
[391934326,1761006637580,-512.37143401,0.00024673,2]
[391934327,1761006637589,-363.77507576,0.00024888,2]
[391934328,1761006637599,-20847.24574062,0.00025,3]
[391934329,1761006637608,-1000.0,0.00025221,2]
[391934330,1761006637618,-524.87285329,0.00025221,2]
[391934331,1761006637627,-1000.0,0.00025221,2]
[391934332,1761006637636,-411.22399868,0.00025488,2]
[391934333,1761006637645,-1200.0,0.00025672,2]
[391934334,1761006637656,-645.05256889,0.00025672,2]
[391934335,1761006637665,-158.81765758,0.00025672,2]
[391934336,1761006637674,-394.15884405,0.00025672,2]
[391934337,1761006637683,-500.0,0.00025672,2]
[391934338,1761006637692,-4466.07104992,0.00025673,2]
[391934339,1761006637702,-7219.68235062,0.00025673,2]
[391934340,1761006637711,-161.0,0.00025726,14]
[391934341,1761006637720,-2886.56,0.0002574,10]
[391934342,1761006637729,-2405.47,0.0002574,10]
[391934343,1761006637739,-6301.55114488,0.0002575,2]
[391934344,1761006637748,-108436.513162,0.00025751,2]
[391934345,1761006637757,-24473.7966783,0.00025751,2]
[391934346,1761006637766,-326.33,0.00025751,3]
[391934347,1761006637775,-459.83,0.00025751,3]
[391934348,1761006637785,-229.91,0.00025751,3]
[391934349,1761006637794,-689.77,0.00025751,3]
[391934350,1761006637803,-370000.0,0.00025761,2]
[391934351,1761006637812,-500.0,0.00025768,2]
[391934352,1761006637821,-1500.0,0.00025768,2]
[391934353,1761006637830,-16746.86,0.000258,7]
[391934354,1761006637839,-492.50638407,0.0002583,2]
[391934355,1761006637848,-15490.9304517,0.0002599,2]
[391934356,1761006637857,-3496.25666833,0.0002599,2]
[391934357,1761006637866,-1000.0,0.00025999,2]
[391934358,1761006637875,-20000.0,0.00026,30]
[391934359,1761006637884,-1666.398039,0.00026,30]
[391934360,1761006637893,-160.0,0.00026,30]
[391934361,1761006637903,-458.67292161,0.00026088,2]
[391934362,1761006637913,-360.0,0.00026243,2]
[391934363,1761006637925,-1000.0,0.000263,2]
[391934364,1761006637934,-507.1927802,0.00026316,2]
[391934365,1761006637943,-2002.99198251,0.0002666,3]
[391934366,1761006637953,-500.0,0.00026666,3]
[391934367,1761006637962,-506.12184453,0.00026688,2]
[391934368,1761006637971,-420.0,0.00026713,2]
[391934369,1761006637981,-309.695666,0.00027,2]
[391934370,1761006637990,-309.695666,0.00027,3]
[391934371,1761006638000,-211.102906,0.00027,2]
[391934372,1761006638009,-211.102906,0.00027,3]
[391934373,1761006638019,-3418.1245584,0.00027,5]
[391934374,1761006638028,-10048.77538253,0.00027097,3]
[391934375,1761006638103,-4016.3757086,0.00027097,3]
[391934376,1761006638113,-300.0,0.00027105,30]
[391934377,1761006638122,-300.0,0.00027105,30]
[391934378,1761006638133,-300.0,0.00027105,30]
[391934379,1761006638142,-300.0,0.00027105,30]
[391934380,1761006638152,-300.0,0.00027105,30]
[391934381,1761006638161,-300.0,0.00027105,30]